[Event "8. Arber-Schachopen 2019"]
[Site "Bodenmais"]
[Date "2019.07.31"]
[Round "5.12"]
[White "Vuckovic, Zarko"]
[Black "Schmahl, Stephan"]
[Result "1-0"]
[ECO "C01"]
[WhiteElo "2214"]
[BlackElo "2101"]
[Annotator "NA"]
[PlyCount "67"]
[EventDate "2019.07.27"]
[EventCountry "GER"]
[SourceTitle "playchess.com"]
[Source "ChessBase"]
[SourceQuality "1"]
[TimeControl "40/5400+30:1800+30"]

1. e4 {[%emt 0:00:00]} e6 {[%emt 0:00:00]} 2. d4 {[%emt 0:00:00]} d5 {[%emt 0:00:00]} 3. exd5 {[%emt 0:00:00]} exd5 {[%emt 0:00:00]} 4. Bd3 {[%emt 0:00:00]} Nc6 {[%emt 0:00:00]} 5. c3 {[%emt 0:00:00]} Bd6 {[%emt 0:00:15]} 6. Qf3 {[%emt 0:00:00]} Nf6 {[%emt 0:00:15]} 7. h3 {[%emt 0:00:00]} Ne4 {[%emt 0:00:31]} 8. Bf4 {[%emt 0:01:41]} O-O {[%emt 0:01:49]} 9. Bxd6 {[%emt 0:03:19]} Qxd6 {[%emt 0:00:28]} 10. Nd2 {[%emt 0:00:23]} f5 {[%emt 0:09:33]} 11. Ne2 {[%emt 0:01:35]} Bd7 {[%emt 0:03:51]} 12. Qf4 {[%emt 0:10:21]} Qxf4 {[%emt 0:10:18]} 13. Nxf4 {[%emt 0:00:04]} Rae8 {[%emt 0:00:19]} 14. Bxe4 {[%emt 0:00:03]} dxe4 {[%emt 0:03:40]} 15. h4 {[%emt 0:00:05]} Nd8 {[%emt 0:12:11]} 16. Nc4 {[%emt 0:02:17]} Ne6 {[%emt 0:03:19]} 17. g3 {[%emt 0:00:59]} Nxf4 {[%emt 0:19:28]} 18. gxf4 {[%emt 0:00:08]} Bb5 {[%emt 0:00:48]} 19. Ne5 {[%emt 0:01:49]} Bd3 {[%emt 0:01:07]} 20. Kd2 {[%emt 0:00:41]} Rf6 {[%emt 0:01:10]} 21. Rae1 {[%emt 0:01:56]} Ba6 {[%emt 0:05:54]} 22. Ke3 {[%emt 0:04:26]} b6 {[%emt 0:02:58]} 23. c4 {[%emt 0:01:58]} Rd8 {[%emt 0:03:08]} 24. Reg1 {[%emt 0:07:40]} Rfd6 {[%emt 0:09:12]} 25. d5 {[%emt 0:01:20]} b5 {[%emt 0:01:30]} 26. b3 {[%emt 0:00:31]} bxc4 {[%emt 0:00:04]} 27. bxc4 {[%emt 0:00:02]} Rb6 {[%emt 0:01:10]} 28. Rg5 {[%emt 0:00:44]} Rf6 {[%emt 0:09:27]} 29. Rhg1 {[%emt 0:00:16]} g6 {[%emt 0:00:07]} 30. h5 {[%emt 0:00:04]} Kg7 {[%emt 0:01:13]} 31. hxg6 {[%emt 0:00:12]} hxg6 {[%emt 0:00:04]} 32. Nxg6 {[%emt 0:00:09]} Kf7 {[%emt 0:01:06]} 33. Ne5+ {[%emt 0:00:37]} Ke7 {[%emt 0:00:12]} 34. Kd4 {[%emt 0:00:19]} 1-0

[Event "8. Arber-Schachopen 2019"]
[Site "Bodenmais"]
[Date "2019.07.31"]
[Round "5.13"]
[White "Beulertz, Stefan"]
[Black "Beck, Gerald"]
[Result "0-1"]
[ECO "C29"]
[WhiteElo "2033"]
[BlackElo "2176"]
[Annotator "NA"]
[PlyCount "104"]
[EventDate "2019.07.27"]
[EventCountry "GER"]
[SourceTitle "playchess.com"]
[Source "ChessBase"]
[SourceQuality "1"]
[TimeControl "40/5400+30:1800+30"]

1. e4 {[%emt 0:00:00]} e5 {[%emt 0:00:00]} 2. Nc3 Nf6 {[%emt 0:00:27]} 3. f4 {[%emt 0:00:08]} d5 {[%emt 0:03:48]} 4. fxe5 {[%emt 0:00:13]} Nxe4 {[%emt 0:02:18]} 5. Qf3 {[%emt 0:01:01]} Nxc3 {[%emt 0:03:34]} 6. dxc3 {[%emt 0:00:07]} Bc5 {[%emt 0:10:37]} 7. Bf4 {[%emt 0:01:21]} O-O {[%emt 0:03:18]} 8. O-O-O {[%emt 0:00:18]} c6 {[%emt 0:00:39]} 9. Bd3 {[%emt 0:00:58]} Qh4 {[%emt 0:08:49]} 10. g3 {[%emt 0:06:17]} Qg4 {[%emt 0:01:41]} 11. Qg2 {[%emt 0:04:51]} Bxg1 {[%emt 0:04:19]} 12. h3 {[%emt 0:02:48]} Be3+ {[%emt 0:11:57]} 13. Bxe3 {[%emt 0:00:12]} Qe6 {[%emt 0:01:28]} 14. Bf4 {[%emt 0:06:02]} Nd7 {[%emt 0:00:48]} 15. Rde1 {[%emt 0:07:35]} Nc5 {[%emt 0:00:31]} 16. Be2 {[%emt 0:01:30]} b5 {[%emt 0:11:05]} 17. Qg1 {[%emt 0:03:09]} Qe7 {[%emt 0:02:56]} 18. g4 {[%emt 0:05:28]} a5 {[%emt 0:03:50]} 19. Qe3 {[%emt 0:11:53]} Ne6 {[%emt 0:02:07]} 20. Bd3 {[%emt 0:04:36]} Ba6 {[%emt 0:05:35]} 21. h4 {[%emt 0:04:26]} b4 {[%emt 0:00:46]} 22. Bxa6 {[%emt 0:18:04]} Rxa6 {[%emt 0:00:09]} 23. Qd3 {[%emt 0:05:18]} Qb7 {[%emt 0:03:17]} 24. Be3 {[%emt 0:07:12]} c5 {[%emt 0:00:24]} 25. c4 {[%emt 0:00:21]} d4 {[%emt 0:00:18]} 26. Bd2 {[%emt 0:01:49]} a4 {[%emt 0:02:45]} 27. g5 {[%emt 0:03:41]} b3 {[%emt 0:05:53]} 28. cxb3 {[%emt 0:01:04]} a3 {[%emt 0:00:10]} 29. Kc2 {[%emt 0:02:20]} Rfa8 {[%emt 0:04:12]} 30. Rb1 {[%emt 0:00:59]} axb2 {[%emt 0:00:17]} 31. Rhf1 {[%emt 0:00:44]} Rxa2 {[%emt 0:00:37]} 32. Rxb2 {[%emt 0:00:24]} Rxb2+ {[%emt 0:03:15]} 33. Kxb2 {[%emt 0:00:08]} Qa7 {[%emt 0:00:26]} 34. Kc2 {[%emt 0:00:36]} Qa2+ {[%emt 0:00:46]} 35. Kd1 {[%emt 0:00:13]} Rb8 {[%emt 0:00:15]} 36. Rf3 {[%emt 0:00:15]} Qa1+ {[%emt 0:01:35]} 37. Bc1 {[%emt 0:01:52]} Qa7 {[%emt 0:01:03]} 38. h5 {[%emt 0:00:21]} Qe7 {[%emt 0:01:08]} 39. g6 {[%emt 0:00:16]} hxg6 {[%emt 0:01:27]} 40. hxg6 {[%emt 0:00:06]} fxg6 {[%emt 0:00:05]} 41. Qxg6 {[%emt 0:31:17]} Nf8 {[%emt 0:05:35]} 42. Qh5 {[%emt 0:00:00]} Re8 {[%emt 0:10:13]} 43. Bf4 {[%emt 0:00:00]} Nd7 {[%emt 0:03:51]} 44. Rh3 {[%emt 0:00:00]} Nxe5 {[%emt 0:02:36]} 45. Qh7+ {[%emt 0:00:00]} Kf7 {[%emt 0:03:36]} 46. Rh5 {[%emt 0:00:00]} Nd7 {[%emt 0:01:07]} 47. Rf5+ {[%emt 0:00:00]} Nf6 {[%emt 0:01:28]} 48. Qh5+ {[%emt 0:00:00]} Kg8 {[%emt 0:01:07]} 49. Qh4 {[%emt 0:02:55]} Qe2+ {[%emt 0:01:11]} 50. Kc1 {[%emt 0:00:03]} Qf1+ {[%emt 0:00:56]} 51. Kc2 {[%emt 0:00:12]} Re2+ {[%emt 0:00:12]} 52. Bd2 {[%emt 0:00:08]} Qxf5+ {[%emt 0:00:21]} 0-1

[Event "8. Arber-Schachopen 2019"]
[Site "Bodenmais"]
[Date "2019.07.31"]
[Round "5.14"]
[White "Schelle, Artur"]
[Black "Kolb, Wolfgang"]
[Result "1-0"]
[ECO "A45"]
[WhiteElo "2176"]
[BlackElo "2099"]
[Annotator "NA"]
[PlyCount "78"]
[EventDate "2019.07.27"]
[EventCountry "GER"]
[SourceTitle "playchess.com"]
[Source "ChessBase"]
[SourceQuality "1"]
[TimeControl "40/5400+30:1800+30"]

1. d4 {[%emt 0:00:00]} Nf6 2. Bf4 {[%emt 0:00:00]} d5 {[%emt 0:00:50]} 3. e3 {[%emt 0:00:15]} c5 {[%emt 0:03:35]} 4. Nf3 {[%emt 0:03:39]} cxd4 {[%emt 0:05:31]} 5. exd4 {[%emt 0:01:52]} Nc6 {[%emt 0:00:07]} 6. c3 {[%emt 0:00:13]} e6 {[%emt 0:06:19]} 7. Bd3 {[%emt 0:01:31]} Be7 {[%emt 0:00:53]} 8. O-O {[%emt 0:01:29]} O-O {[%emt 0:01:52]} 9. Nbd2 {[%emt 0:03:29]} Nh5 {[%emt 0:15:04]} 10. Be3 {[%emt 0:05:06]} f5 {[%emt 0:00:24]} 11. Ne5 {[%emt 0:01:02]} Nf6 {[%emt 0:12:31]} 12. Bg5 {[%emt 0:07:06]} Nxe5 {[%emt 0:01:38]} 13. dxe5 {[%emt 0:00:08]} Ne4 {[%emt 0:05:31]} 14. Bxe7 {[%emt 0:03:21]} Qxe7 {[%emt 0:00:01]} 15. Nb3 {[%emt 0:07:19]} Qc7 {[%emt 0:02:11]} 16. Qe2 {[%emt 0:06:05]} Nc5 {[%emt 0:02:14]} 17. Nd4 {[%emt 0:09:33]} Nxd3 {[%emt 0:01:45]} 18. Qxd3 {[%emt 0:00:07]} Qxe5 {[%emt 0:02:09]} 19. f4 {[%emt 0:07:20]} Qd6 {[%emt 0:04:18]} 20. Rae1 {[%emt 0:01:08]} Bd7 {[%emt 0:00:34]} 21. Re5 {[%emt 0:02:15]} Rae8 {[%emt 0:07:35]} 22. Rfe1 {[%emt 0:00:56]} a6 {[%emt 0:02:24]} 23. Qe2 {[%emt 0:03:04]} Kf7 {[%emt 0:03:08]} 24. Qh5+ {[%emt 0:01:40]} Kg8 {[%emt 0:00:02]} 25. Qe2 {[%emt 0:00:09]} Kf7 {[%emt 0:00:04]} 26. h3 {[%emt 0:00:38]} g6 {[%emt 0:02:10]} 27. Qf2 {[%emt 0:01:34]} Kg7 {[%emt 0:03:10]} 28. R1e3 {[%emt 0:02:04]} Rf6 {[%emt 0:01:07]} 29. Kh1 {[%emt 0:01:44]} Ref8 {[%emt 0:01:38]} 30. Qe1 {[%emt 0:00:51]} Re8 {[%emt 0:02:37]} 31. Qd2 {[%emt 0:04:43]} Ref8 {[%emt 0:00:56]} 32. a3 {[%emt 0:00:40]} Rc8 {[%emt 0:00:52]} 33. Re2 {[%emt 0:01:28]} Qb6 {[%emt 0:02:21]} 34. Qe3 {[%emt 0:02:14]} Re8 {[%emt 0:04:31]} 35. Nxf5+ {[%emt 0:10:16]} exf5 {[%emt 0:00:02]} 36. Rxe8 {[%emt 0:00:09]} Bxe8 {[%emt 0:00:05]} 37. Qxe8 {[%emt 0:00:07]} Qc5 {[%emt 0:02:45]} 38. Re7+ {[%emt 0:01:29]} Kh6 {[%emt 0:00:04]} 39. Qd7 {[%emt 0:00:13]} b6 1-0

[Event "8. Arber-Schachopen 2019"]
[Site "Bodenmais"]
[Date "2019.07.31"]
[Round "5.15"]
[White "Hoffmann, Tim"]
[Black "Vennemann, Juergen"]
[Result "0-1"]
[ECO "B12"]
[WhiteElo "2147"]
[BlackElo "1925"]
[Annotator "NA"]
[PlyCount "54"]
[EventDate "2019.07.27"]
[EventCountry "GER"]
[SourceTitle "playchess.com"]
[Source "ChessBase"]
[SourceQuality "1"]
[TimeControl "40/5400+30:1800+30"]

1. e4 {[%emt 0:00:00]} c6 {[%emt 0:00:00]} 2. d4 {[%emt 0:00:00]} d5 {[%emt 0:00:00]} 3. e5 {[%emt 0:00:18]} Bf5 {[%emt 0:00:00]} 4. Nd2 {[%emt 0:00:43]} e6 {[%emt 0:00:37]} 5. Nb3 {[%emt 0:00:13]} Nd7 {[%emt 0:05:10]} 6. Nf3 {[%emt 0:01:02]} h5 {[%emt 0:03:13]} 7. Be2 {[%emt 0:07:20]} Ne7 {[%emt 0:07:05]} 8. O-O {[%emt 0:10:28]} Bg4 {[%emt 0:02:57]} 9. Bg5 {[%emt 0:12:10]} Qc7 {[%emt 0:05:04]} 10. Bd3 {[%emt 0:04:11]} f6 {[%emt 0:07:26]} 11. exf6 {[%emt 0:12:43]} gxf6 {[%emt 0:00:31]} 12. Bh4 {[%emt 0:00:03]} e5 {[%emt 0:03:37]} 13. dxe5 {[%emt 0:00:39]} fxe5 {[%emt 0:05:30]} 14. Bxe7 {[%emt 0:02:01]} Bxe7 {[%emt 0:00:25]} 15. Bg6+ {[%emt 0:00:05]} Kd8 {[%emt 0:00:26]} 16. h3 {[%emt 0:02:44]} e4 {[%emt 0:04:26]} 17. hxg4 {[%emt 0:15:39]} hxg4 {[%emt 0:00:53]} 18. Nh4 {[%emt 0:00:16]} Bxh4 {[%emt 0:13:09]} 19. Qxg4 {[%emt 0:02:39]} Ne5 {[%emt 0:00:21]} 20. Qf5 {[%emt 0:00:45]} Nxg6 {[%emt 0:00:27]} 21. g3 {[%emt 0:00:41]} Ne5 {[%emt 0:03:10]} 22. Nd4 {[%emt 0:00:33]} Nf3+ {[%emt 0:01:35]} 23. Nxf3 {[%emt 0:02:21]} exf3 {[%emt 0:01:18]} 24. Qxf3 {[%emt 0:01:05]} Bg5 {[%emt 0:07:34]} 25. c4 {[%emt 0:03:10]} Qh7 {[%emt 0:01:13]} 26. Qg2 {[%emt 0:00:46]} dxc4 {[%emt 0:04:05]} 27. Rfe1 {[%emt 0:01:35]} Kc7 {[%emt 0:01:18]} 0-1

[Event "8. Arber-Schachopen 2019"]
[Site "Bodenmais"]
[Date "2019.07.31"]
[Round "5.16"]
[White "Pfeifer, Wilfried"]
[Black "Senner, Peter"]
[Result "0-1"]
[ECO "A03"]
[WhiteElo "1916"]
[BlackElo "2231"]
[Annotator "NA"]
[PlyCount "40"]
[EventDate "2019.07.27"]
[EventCountry "GER"]
[SourceTitle "playchess.com"]
[Source "ChessBase"]
[SourceQuality "1"]
[TimeControl "40/5400+30:1800+30"]

1. f4 {[%emt 0:00:00]} d5 {[%emt 0:00:00]} 2. Nf3 {[%emt 0:00:00]} c5 {[%emt 0:00:00]} 3. e3 {[%emt 0:01:26]} a6 {[%emt 0:00:00]} 4. b3 {[%emt 0:01:13]} Nc6 {[%emt 0:00:00]} 5. Bb2 {[%emt 0:00:22]} Nh6 {[%emt 0:02:15]} 6. Be2 {[%emt 0:01:48]} e6 {[%emt 0:01:18]} 7. Ne5 {[%emt 0:04:53]} Nxe5 {[%emt 0:10:33]} 8. fxe5 {[%emt 0:00:27]} d4 {[%emt 0:00:16]} 9. exd4 {[%emt 0:01:37]} cxd4 {[%emt 0:01:10]} 10. Bf3 {[%emt 0:02:00]} Bc5 {[%emt 0:00:16]} 11. Ba3 {[%emt 0:14:47]} Qa5 {[%emt 0:00:13]} 12. Bc1 {[%emt 0:12:35]} Nf5 {[%emt 0:06:58]} 13. Kf1 {[%emt 0:04:34]} O-O {[%emt 0:03:53]} 14. g3 {[%emt 0:02:08]} f6 {[%emt 0:06:01]} 15. exf6 {[%emt 0:01:54]} Rxf6 {[%emt 0:00:01]} 16. Kg2 {[%emt 0:00:15]} Bd7 {[%emt 0:00:35]} 17. Rf1 {[%emt 0:27:49]} Raf8 {[%emt 0:00:24]} 18. d3 {[%emt 0:04:29]} Ne3+ {[%emt 0:01:45]} 19. Bxe3 {[%emt 0:00:15]} dxe3 {[%emt 0:00:05]} 20. d4 {[%emt 0:04:24]} Bc6 {[%emt 0:02:58]} 0-1

[Event "8. Arber-Schachopen 2019"]
[Site "Bodenmais"]
[Date "2019.07.31"]
[Round "5.17"]
[White "Kleibel, Uwe"]
[Black "Kneutgen, Alexander"]
[Result "1-0"]
[ECO "C01"]
[WhiteElo "2217"]
[BlackElo "1920"]
[Annotator "NA"]
[PlyCount "75"]
[EventDate "2019.07.27"]
[EventCountry "GER"]
[SourceTitle "playchess.com"]
[Source "ChessBase"]
[SourceQuality "1"]
[TimeControl "40/5400+30:1800+30"]

1. e4 {[%emt 0:00:00]} e6 {[%emt 0:00:00]} 2. d4 {[%emt 0:00:00]} d5 {[%emt 0:00:00]} 3. exd5 {[%emt 0:00:00]} exd5 {[%emt 0:00:15]} 4. Nf3 {[%emt 0:00:00]} Bd6 {[%emt 0:01:18]} 5. c4 {[%emt 0:00:00]} c6 {[%emt 0:01:24]} 6. Nc3 {[%emt 0:00:00]} Ne7 {[%emt 0:02:36]} 7. Bd3 {[%emt 0:00:00]} dxc4 {[%emt 0:02:13]} 8. Bxc4 {[%emt 0:00:00]} O-O {[%emt 0:00:28]} 9. O-O {[%emt 0:00:00]} Nd7 {[%emt 0:02:52]} 10. Bb3 {[%emt 0:00:00]} Nb6 {[%emt 0:01:27]} 11. Ne5 {[%emt 0:00:14]} Bxe5 {[%emt 0:06:44]} 12. dxe5 {[%emt 0:00:02]} Qxd1 {[%emt 0:00:48]} 13. Rxd1 {[%emt 0:00:01]} Be6 {[%emt 0:01:30]} 14. Be3 {[%emt 0:08:00]} Ned5 {[%emt 0:22:16]} 15. Nxd5 {[%emt 0:01:59]} Nxd5 {[%emt 0:03:26]} 16. Bc5 {[%emt 0:00:54]} Rfd8 {[%emt 0:00:29]} 17. Rd4 {[%emt 0:01:13]} Rd7 {[%emt 0:10:28]} 18. Rad1 {[%emt 0:02:40]} b6 {[%emt 0:09:36]} 19. Bd6 {[%emt 0:00:35]} b5 {[%emt 0:07:03]} 20. Rc1 {[%emt 0:03:22]} Ne7 {[%emt 0:00:58]} 21. Bxe6 {[%emt 0:08:05]} fxe6 {[%emt 0:00:10]} 22. Rd2 {[%emt 0:02:15]} Rc8 {[%emt 0:02:30]} 23. Rdc2 {[%emt 0:00:24]} Nf5 {[%emt 0:02:06]} 24. Rxc6 {[%emt 0:00:21]} Rxc6 {[%emt 0:00:10]} 25. Rxc6 {[%emt 0:00:01]} Kf7 {[%emt 0:06:58]} 26. Kf1 {[%emt 0:05:59]} Nxd6 {[%emt 0:08:08]} 27. exd6 {[%emt 0:01:16]} e5 {[%emt 0:00:32]} 28. Rc5 {[%emt 0:00:57]} Ke6 {[%emt 0:02:56]} 29. Rxb5 {[%emt 0:00:05]} Kxd6 {[%emt 0:00:10]} 30. Ke2 {[%emt 0:01:25]} Ke6 {[%emt 0:00:25]} 31. a4 {[%emt 0:02:53]} g6 {[%emt 0:02:34]} 32. b4 {[%emt 0:02:32]} Kf5 {[%emt 0:00:53]} 33. Ke3 {[%emt 0:00:22]} Rc7 {[%emt 0:00:44]} 34. Rc5 {[%emt 0:02:16]} Rb7 {[%emt 0:00:52]} 35. b5 {[%emt 0:00:13]} g5 {[%emt 0:00:18]} 36. f3 {[%emt 0:01:46]} h5 {[%emt 0:00:36]} 37. g3 {[%emt 0:00:08]} Ke6 {[%emt 0:01:33]} 38. Ke4 {[%emt 0:00:09] Kd5+} 1-0

[Event "8. Arber-Schachopen 2019"]
[Site "Bodenmais"]
[Date "2019.07.31"]
[Round "5.18"]
[White "Speicher, Franz"]
[Black "Hoffmann, Sebastian"]
[Result "0-1"]
[ECO "A03"]
[WhiteElo "1895"]
[BlackElo "2199"]
[Annotator "NA"]
[PlyCount "90"]
[EventDate "2019.07.27"]
[EventCountry "GER"]
[SourceTitle "playchess.com"]
[Source "ChessBase"]
[SourceQuality "1"]
[TimeControl "40/5400+30:1800+30"]

1. f4 {[%emt 0:00:00]} d5 {[%emt 0:03:07]} 2. Nf3 {[%emt 0:00:00]} g6 {[%emt 0:00:10]} 3. c4 {[%emt 0:00:22]} c6 {[%emt 0:02:06]} 4. e3 {[%emt 0:01:40]} Bg7 {[%emt 0:00:26]} 5. Nc3 {[%emt 0:03:42]} Nf6 {[%emt 0:00:37]} 6. cxd5 {[%emt 0:02:49]} cxd5 {[%emt 0:00:19]} 7. Bb5+ {[%emt 0:02:12]} Bd7 {[%emt 0:01:20]} 8. Qb3 {[%emt 0:04:36]} Bxb5 {[%emt 0:04:31]} 9. Qxb5+ {[%emt 0:02:48]} Qd7 {[%emt 0:00:11]} 10. Ne5 {[%emt 0:06:47]} Qxb5 {[%emt 0:00:08]} 11. Nxb5 {[%emt 0:00:09]} Na6 {[%emt 0:00:40]} 12. b3 {[%emt 0:16:35]} Nd7 {[%emt 0:01:53]} 13. d4 {[%emt 0:03:04]} Nxe5 {[%emt 0:07:06]} 14. fxe5 {[%emt 0:05:35]} Nb4 {[%emt 0:25:09]} 15. O-O {[%emt 0:11:55]} O-O {[%emt 0:09:59]} 16. Bd2 {[%emt 0:07:20]} Nc6 {[%emt 0:04:08]} 17. Nc7 {[%emt 0:01:35]} Rad8 {[%emt 0:01:02]} 18. e6 {[%emt 0:00:51]} f5 {[%emt 0:06:53]} 19. Rac1 {[%emt 0:02:14]} Rd6 {[%emt 0:01:20]} 20. Rc5 {[%emt 0:04:13]} Nxd4 {[%emt 0:01:53]} 21. Rxd5 {[%emt 0:02:22]} Rxd5 {[%emt 0:03:47]} 22. Nxd5 {[%emt 0:00:03]} Nc6 {[%emt 0:03:58]} 23. Bc1 {[%emt 0:06:36]} Rd8 {[%emt 0:03:13]} 24. Rd1 {[%emt 0:00:10]} Kf8 {[%emt 0:00:58]} 25. Ba3 {[%emt 0:00:19]} a5 {[%emt 0:04:20]} 26. Bc5 {[%emt 0:02:15]} Be5 {[%emt 0:00:45]} 27. g3 {[%emt 0:02:46]} Bd6 {[%emt 0:00:50]} 28. Bb6 {[%emt 0:02:13]} Ra8 {[%emt 0:01:08]} 29. Nc7 {[%emt 0:02:48]} Bxc7 {[%emt 0:00:56]} 30. Bxc7 {[%emt 0:00:02]} a4 {[%emt 0:04:02]} 31. bxa4 {[%emt 0:01:21]} Rxa4 {[%emt 0:00:00]} 32. Rd2 {[%emt 0:00:23]} Kg7 {[%emt 0:00:22]} 33. Rb2 {[%emt 0:02:33]} Kf6 {[%emt 0:00:23]} 34. Rxb7 {[%emt 0:00:23]} Rxa2 {[%emt 0:00:09]} 35. Rb6 {[%emt 0:02:50]} Rc2 {[%emt 0:00:20]} 36. Bf4 {[%emt 0:00:43]} g5 {[%emt 0:01:31]} 37. Bc7 {[%emt 0:00:02]} Kxe6 {[%emt 0:00:22]} 38. Rb7 {[%emt 0:02:07]} Kd5 {[%emt 0:00:39]} 39. Rb5+ {[%emt 0:00:33]} Ke4 {[%emt 0:00:26]} 40. Bb6 {[%emt 0:00:31]} e6 {[%emt 0:03:05]} 41. Rc5 {[%emt 0:04:30]} Rxc5 {[%emt 0:00:00]} 42. Bxc5 {[%emt 0:00:08]} Kf3 {[%emt 0:00:00]} 43. Kf1 {[%emt 0:05:20]} Ne5 {[%emt 0:00:17]} 44. h3 {[%emt 0:02:58]} Nc4 {[%emt 0:00:28]} 45. g4 {[%emt 0:01:01]} Nxe3+ {[%emt 0:00:28]} 0-1

[Event "8. Arber-Schachopen 2019"]
[Site "Bodenmais"]
[Date "2019.07.31"]
[Round "5.19"]
[White "Lorencova, Vera"]
[Black "Schmid, Wolfgang"]
[Result "1/2-1/2"]
[ECO "B01"]
[WhiteElo "1892"]
[BlackElo "2162"]
[Annotator "NA"]
[PlyCount "102"]
[EventDate "2019.07.27"]
[EventCountry "GER"]
[SourceTitle "playchess.com"]
[Source "ChessBase"]
[SourceQuality "1"]
[TimeControl "40/5400+30:1800+30"]

1. e4 {[%emt 0:02:04]} d5 {[%emt 0:00:00]} 2. exd5 {[%emt 0:00:18]} Qxd5 {[%emt 0:00:00]} 3. Nc3 {[%emt 0:00:21]} Qd8 {[%emt 0:00:16]} 4. d4 {[%emt 0:00:22]} c6 {[%emt 0:00:11]} 5. Nf3 {[%emt 0:01:16]} Nf6 {[%emt 0:00:19]} 6. Bc4 {[%emt 0:01:24]} Bf5 {[%emt 0:00:40]} 7. Bf4 {[%emt 0:04:25]} e6 {[%emt 0:02:11]} 8. Qe2 {[%emt 0:05:58]} Be7 {[%emt 0:03:16]} 9. O-O {[%emt 0:06:35]} O-O {[%emt 0:02:01]} 10. Rad1 {[%emt 0:02:06]} Nbd7 {[%emt 0:12:16]} 11. Rfe1 {[%emt 0:02:56]} Nb6 {[%emt 0:04:09]} 12. Bb3 {[%emt 0:08:11]} a5 {[%emt 0:04:51]} 13. a4 {[%emt 0:04:40]} Bb4 {[%emt 0:05:43]} 14. Bg5 {[%emt 0:12:26]} Nbd5 {[%emt 0:11:36]} 15. Nxd5 {[%emt 0:15:18]} cxd5 {[%emt 0:01:21]} 16. c3 {[%emt 0:01:18]} Be7 {[%emt 0:00:32]} 17. Qb5 {[%emt 0:08:34]} Ra6 {[%emt 0:03:10]} 18. Qe2 {[%emt 0:04:40]} Rb6 {[%emt 0:01:03]} 19. Ba2 {[%emt 0:04:52]} h6 {[%emt 0:02:23]} 20. Bh4 {[%emt 0:02:19]} Qd7 {[%emt 0:05:02]} 21. b3 {[%emt 0:06:42]} Ne4 {[%emt 0:08:11]} 22. Ne5 {[%emt 0:01:48]} Qd8 {[%emt 0:00:35]} 23. Bxe7 {[%emt 0:00:08]} Qxe7 {[%emt 0:00:07]} 24. Qb2 {[%emt 0:01:57]} Rc8 {[%emt 0:01:03]} 25. Rc1 {[%emt 0:00:21]} Qe8 {[%emt 0:04:13]} 26. f3 {[%emt 0:00:26]} Nd6 {[%emt 0:00:26]} 27. Qd2 {[%emt 0:00:23]} Ra6 {[%emt 0:02:21]} 28. g4 {[%emt 0:00:17]} Bh7 {[%emt 0:00:44]} 29. Bb1 {[%emt 0:00:25]} Bxb1 {[%emt 0:01:01]} 30. Rxb1 {[%emt 0:00:02]} Qe7 {[%emt 0:00:40]} 31. Kh1 {[%emt 0:01:01]} Ra7 {[%emt 0:01:41]} 32. Rg1 {[%emt 0:00:13]} g5 {[%emt 0:01:26]} 33. Rbf1 {[%emt 0:01:42]} b6 {[%emt 0:00:07]} 34. Rg3 {[%emt 0:00:28]} Rac7 {[%emt 0:00:15]} 35. f4 {[%emt 0:00:29]} Ne4 {[%emt 0:01:20]} 36. Qe2 {[%emt 0:00:54]} Nxg3+ {[%emt 0:02:46]} 37. hxg3 {[%emt 0:00:02]} gxf4 {[%emt 0:02:44]} 38. Rxf4 {[%emt 0:00:13]} Rxc3 {[%emt 0:00:07]} 39. Rf1 Rc1 {[%emt 0:00:48]} 40. Rxc1 {[%emt 0:01:51]} Rxc1+ {[%emt 0:00:04]} 41. Kg2 {[%emt 0:00:11]} Qf6 {[%emt 0:08:57]} 42. Nf3 {[%emt 0:06:24]} Rc3 {[%emt 0:01:53]} 43. Ne5 {[%emt 0:01:32]} Kg7 {[%emt 0:02:16]} 44. Qb2 {[%emt 0:04:32]} Rc7 {[%emt 0:01:45]} 45. Qe2 {[%emt 0:01:59]} Rc1 {[%emt 0:03:24]} 46. Nf3 {[%emt 0:01:01]} Qg6 {[%emt 0:01:22]} 47. Kh3 {[%emt 0:06:11]} Qe4 {[%emt 0:02:52]} 48. Qd2 {[%emt 0:01:04]} Rc2 {[%emt 0:02:09]} 49. Qd1 {[%emt 0:00:29]} Rf2 {[%emt 0:01:02]} 50. Nh4 {[%emt 0:04:40]} Qe2 {[%emt 0:00:41]} 51. Qh1 {[%emt 0:00:20]} Rf1 {[%emt 0:00:15]} 1/2-1/2